fUSD/lending_fUSD_20250112
["ID","MTS","AMOUNT","RATE_DAILY","PERIOD"]
[348598292,1736663446438,-500.0,9.799e-05,2]
[348598293,1736663446447,-643.67,9.799e-05,2]
[348598294,1736663446457,-743.86,9.799e-05,2]
[348598295,1736663446466,-500.0,9.799e-05,2]
[348598296,1736663446475,-950.2,9.799e-05,2]
[348598297,1736663446485,-500.0,9.799e-05,2]
[348598298,1736663446494,-500.0,9.799e-05,2]
[348598299,1736663446504,-500.0,9.799e-05,2]
[348598300,1736663446517,-664.7,9.799e-05,2]
[348598301,1736663446526,-821.67,9.799e-05,2]
[348598302,1736663446535,-526.82,9.799e-05,2]
[348598303,1736663446544,-500.0,9.799e-05,2]
[348598304,1736663446554,-500.0,9.799e-05,2]
[348598305,1736663446563,-500.0,9.799e-05,2]
[348598306,1736663446572,-500.0,9.799e-05,2]
[348598307,1736663446581,-867.72,9.799e-05,2]
[348598308,1736663446590,-524.54,9.799e-05,2]
[348598309,1736663446600,-571.57,9.799e-05,2]
[348598310,1736663446609,-500.0,9.799e-05,2]
[348598311,1736663446619,-515.86,9.799e-05,2]
[348598312,1736663446628,-608.44830267,9.799e-05,2]
[348598313,1736663446637,-500.0,9.799e-05,2]
[348598314,1736663446646,-500.0,9.799e-05,2]
[348598315,1736663446656,-500.0,9.799e-05,2]
[348598316,1736663446665,-500.0,9.799e-05,2]
[348598317,1736663446674,-602.22,9.799e-05,2]
[348598318,1736663446683,-848.79,9.799e-05,2]
[348598319,1736663446692,-949.76,9.799e-05,2]
[348598320,1736663446702,-1370.95,9.799e-05,2]
[348598321,1736663446711,-500.0,9.799e-05,2]
[348598322,1736663446720,-500.0,9.799e-05,2]
[348598323,1736663446730,-500.0,9.799e-05,2]
[348598324,1736663446739,-500.0,9.799e-05,2]
[348598325,1736663446748,-500.0,9.799e-05,2]
[348598326,1736663446758,-500.0,9.799e-05,2]
[348598327,1736663446767,-1293.38,9.799e-05,2]
[348598328,1736663446776,-500.0,9.799e-05,2]
[348598329,1736663446785,-500.0,9.799e-05,2]
[348598330,1736663446794,-500.0,9.799e-05,2]
[348598331,1736663446803,-500.0,9.799e-05,2]
[348598332,1736663446812,-500.0,9.799e-05,2]
[348598333,1736663446822,-724.33,9.799e-05,2]
[348598334,1736663446831,-500.0,9.799e-05,2]
[348598335,1736663446840,-647.13,9.799e-05,2]
[348598336,1736663446849,-3778.04,9.799e-05,2]
[348598337,1736663446858,-677.69,9.799e-05,2]
[348598338,1736663446868,-500.0,9.799e-05,2]
[348598339,1736663446877,-500.0,9.799e-05,2]
[348598340,1736663446886,-500.0,9.799e-05,2]
[348598341,1736663446895,-500.0,9.799e-05,2]
[348598342,1736663446905,-206.80064798,9.799e-05,2]
[348598343,1736663446914,-500.0,9.799e-05,2]
[348598344,1736663446924,-656.09,9.799e-05,2]
[348598345,1736663446933,-1228.26,9.799e-05,2]
[348598346,1736663446942,-500.0,9.799e-05,2]
[348598347,1736663446952,-1513.46,9.799e-05,2]
[348598348,1736663446960,-661.62,9.799e-05,2]
[348598349,1736663446969,-676.69,9.799e-05,2]
[348598350,1736663446979,-500.0,9.799e-05,2]
[348598351,1736663446988,-500.0,9.799e-05,2]
[348598352,1736663446997,-757.74,9.799e-05,2]
[348598353,1736663447006,-805.76,9.799e-05,2]
[348598354,1736663447015,-622.54,9.799e-05,2]
[348598355,1736663447024,-692.53,9.799e-05,2]
[348598356,1736663447034,-500.0,9.799e-05,2]
[348598357,1736663447042,-915.04,9.799e-05,2]
[348598358,1736663447052,-500.0,9.799e-05,2]
[348598359,1736663447061,-500.0,9.799e-05,2]
[348598360,1736663447070,-887.07,9.799e-05,2]
[348598361,1736663447080,-572.92,9.799e-05,2]
[348598362,1736663447089,-1968.24,9.799e-05,2]
[348598363,1736663447098,-500.0,9.799e-05,2]
[348598364,1736663447107,-797.32,9.799e-05,2]
[348598365,1736663447116,-730.04,9.799e-05,2]
[348598366,1736663447126,-2877.62,9.799e-05,2]
[348598367,1736663447135,-500.0,9.799e-05,2]
[348598368,1736663447144,-719.81,9.799e-05,2]
[348598369,1736663447153,-500.0,9.799e-05,2]
[348598370,1736663447162,-1183.2,9.799e-05,2]
[348598371,1736663447171,-500.0,9.799e-05,2]
[348598372,1736663447181,-752.16,9.799e-05,2]
[348598373,1736663447190,-2505.9,9.799e-05,2]
[348598374,1736663447199,-500.0,9.799e-05,2]
[348598375,1736663447208,-500.0,9.799e-05,2]
[348598376,1736663447217,-500.0,9.799e-05,2]
[348598377,1736663447227,-500.81,9.799e-05,2]
[348598378,1736663447236,-6363.37,9.799e-05,2]
[348598379,1736663447245,-551.9,9.799e-05,2]
[348598380,1736663447254,-675.59,9.799e-05,2]
[348598381,1736663447263,-500.0,9.799e-05,2]
[348598382,1736663447272,-937.8,9.799e-05,2]
[348598383,1736663447281,-1540.85,9.799e-05,2]
[348598384,1736663447290,-500.0,9.799e-05,2]
[348598385,1736663447299,-408.7918443,9.799e-05,2]
[348598386,1736663447319,-600.7581557,9.799e-05,2]
[348598387,1736663447328,-1479.95,9.799e-05,2]
[348598388,1736663447337,-1413.0,9.799e-05,2]
[348598389,1736663447347,-796.87,9.799e-05,2]
[348598390,1736663447356,-734.4,9.799e-05,2]
[348598391,1736663447365,-611.84,9.799e-05,2]
[348598392,1736663447374,-960.36,9.799e-05,2]
[348598393,1736663447383,-1074.27,9.799e-05,2]
[348598394,1736663447392,-500.0,9.799e-05,2]
[348598395,1736663447401,-834.11,9.799e-05,2]
[348598396,1736663447410,-964.99,9.799e-05,2]
[348598397,1736663447419,-500.0,9.799e-05,2]
[348598398,1736663447428,-1983.31,9.799e-05,2]
[348598399,1736663447437,-570.42,9.799e-05,2]
[348598400,1736663447446,-3993.82,9.799e-05,2]
[348598401,1736663447455,-500.0,9.799e-05,2]
[348598402,1736663447464,-1055.65,9.799e-05,2]
[348598403,1736663447473,-500.0,9.799e-05,2]
[348598404,1736663447483,-500.0,9.799e-05,2]
[348598405,1736663447492,-1988.36,9.799e-05,2]
[348598406,1736663447502,-543.08,9.799e-05,2]
[348598407,1736663447513,-3825.39,9.799e-05,2]
[348598408,1736663447522,-500.0,9.799e-05,2]
[348598409,1736663447532,-500.0,9.799e-05,2]
[348598410,1736663447541,-3914.22,9.799e-05,2]
[348598411,1736663447551,-2901.73,9.799e-05,2]
[348598412,1736663447561,-1760.59,9.799e-05,2]
[348598413,1736663447570,-1178.37,9.799e-05,2]
[348598414,1736663447579,-696.54,9.799e-05,2]
[348598415,1736663447590,-500.0,9.799e-05,2]
[348598416,1736663447599,-779.55,9.799e-05,2]
[348598417,1736663447609,-1013.16,9.799e-05,2]
[348598418,1736663447619,-500.0,9.799e-05,2]
[348598419,1736663447628,-1178.1,9.799e-05,2]
[348598420,1736663447637,-2445.74,9.799e-05,2]
[348598421,1736663447646,-500.0,9.799e-05,2]
[348598422,1736663447655,-1629.91,9.799e-05,2]
[348598423,1736663447665,-785.07,9.799e-05,2]
[348598424,1736663447674,-592.46,9.799e-05,2]
[348598425,1736663447683,-3163.01,9.799e-05,2]
[348598426,1736663447693,-500.0,9.799e-05,2]
[348598427,1736663447703,-500.0,9.799e-05,2]
[348598428,1736663447712,-1853.08,9.799e-05,2]
[348598429,1736663447721,-1540.78,9.799e-05,2]
[348598430,1736663447731,-1020.75,9.799e-05,2]
[348598431,1736663447740,-576.84,9.799e-05,2]
[348598432,1736663447749,-500.0,9.799e-05,2]
[348598433,1736663447759,-1466.18,9.799e-05,2]
[348598434,1736663447768,-2636.65,9.799e-05,2]
[348598435,1736663447777,-500.0,9.799e-05,2]
[348598436,1736663447787,-643.83,9.799e-05,2]
[348598437,1736663447797,-500.0,9.799e-05,2]
[348598438,1736663447806,-2427.75,9.799e-05,2]
[348598439,1736663447816,-500.0,9.799e-05,2]
[348598440,1736663447825,-500.0,9.799e-05,2]
[348598441,1736663447835,-578.34,9.799e-05,2]
[348598442,1736663447844,-1415.85,9.799e-05,2]
[348598443,1736663447854,-703.78,9.799e-05,2]
[348598444,1736663447863,-500.0,9.799e-05,2]
[348598445,1736663447872,-1084.7,9.799e-05,2]
[348598446,1736663447881,-500.0,9.799e-05,2]
[348598447,1736663447890,-2370.67,9.799e-05,2]
[348598448,1736663447900,-1576.76,9.799e-05,2]
[348598449,1736663447909,-504.01,9.799e-05,2]
[348598450,1736663447919,-655.89,9.799e-05,2]
[348598451,1736663447928,-500.0,9.799e-05,2]
[348598452,1736663447938,-137069.2860718,9.8e-05,2]
[348598453,1736663447948,-5400.0,9.8e-05,3]
[348598454,1736663447957,-287.0,9.81e-05,2]
[348598455,1736663447967,-420.0,9.81e-05,2]
[348598456,1736663447976,-14662.33699101,9.811e-05,2]
[348598457,1736663670996,500.0,8.464e-05,2]
[348598458,1736663713403,940.57,8.219e-05,2]
[348598459,1736663935383,1186.305891,8.178e-05,2]
[348598460,1736664113543,2000.0,0.0001,4]
[348598461,1736664161567,530.3,8.49e-05,2]
[348598462,1736664203106,500.0,9.798e-05,7]
[348598464,1736664290208,250.0,8.482e-05,2]
[348598466,1736664352226,500.0,8.499e-05,2]
[348598478,1736664531148,250.0,8.519e-05,2]
[348598480,1736664581881,1013.58,8.219e-05,2]
[348598501,1736664632204,-209.41,8.589e-05,2]
[348598502,1736664632213,-1004.96,8.601e-05,2]
[348598503,1736664632223,-300.0,8.608e-05,2]
[348598504,1736664632232,-300.0,8.608e-05,2]
[348598505,1736664632245,-1331.14,8.609e-05,2]
[348598506,1736664632256,-2607.38371863,8.609e-05,2]
[348598507,1736664632267,-657.51470199,8.609e-05,2]
[348598508,1736664632278,-9409.91157938,8.609e-05,2]
[348598509,1736664632289,-754.58,8.63e-05,2]
[348598510,1736664632298,-1000.0,8.652e-05,2]
[348598511,1736664632308,-250.0,8.691e-05,2]
[348598512,1736664632319,-150.0,8.712e-05,2]
[348598513,1736664632329,-171.79,8.796e-05,2]
[348598514,1736664632338,-538.42,8.861e-05,2]
[348598515,1736664632347,-980.06,8.998e-05,2]
[348598516,1736664632356,-500.0,8.999e-05,2]
[348598517,1736664632365,-1517.85,8.999e-05,2]
[348598518,1736664632374,-1831.45,8.999e-05,2]
[348598519,1736664632383,-1262.15,8.999e-05,2]
[348598520,1736664632392,-2965.78,8.999e-05,2]
[348598521,1736664632401,-1672.59,8.999e-05,2]
[348598522,1736664632410,-3495.27,8.999e-05,2]
[348598523,1736664632419,-150.0,9.272e-05,2]
[348598524,1736664632428,-500.0,9.273e-05,2]
[348598525,1736664632437,-1517.85,9.273e-05,2]
[348598526,1736664632447,-1075.43381512,9.273e-05,2]
[348598527,1736664632480,-756.01618488,9.273e-05,2]
[348598529,1736664632489,-1262.15,9.273e-05,2]
[348598530,1736664632498,-1691.14069641,9.273e-05,2]
[348598532,1736664632515,-1274.63930359,9.273e-05,2]
[348598533,1736664632524,-1672.59,9.273e-05,2]
[348598534,1736664632533,-3495.27,9.273e-05,2]
[348598535,1736664632542,-445.67,9.547e-05,2]
[348598536,1736664632551,-703.04208671,9.547e-05,2]
[348598537,1736664632562,-378.98345466,9.547e-05,2]
[348598538,1736664632574,-435.82445863,9.547e-05,2]
[348598539,1736664632583,-1831.45,9.547e-05,2]
[348598540,1736664632591,-1262.15,9.547e-05,2]
[348598541,1736664632600,-2965.78,9.547e-05,2]
[348598542,1736664632609,-1672.59,9.547e-05,2]
[348598543,1736664632618,-3495.27,9.547e-05,2]
[348598544,1736664632627,-530.3,9.551e-05,2]
[348598545,1736664632636,-2664.42,9.589e-05,2]
[348598546,1736664632645,-1900.0,9.6e-05,3]
[348598547,1736664632654,-167.37,9.674e-05,2]
[348598548,1736664632663,-1500.0,9.697e-05,2]
[348598549,1736664632672,-5000.0,9.698e-05,2]
[348598550,1736664632681,-1571.94128903,9.699e-05,2]
[348598551,1736664632690,-46480.4962,9.7e-05,2]
[348598552,1736664632699,-3800.0,9.7e-05,3]
[348598553,1736664632708,-4486.3393,9.721e-05,2]
[348598554,1736664632719,-1000.0,9.733e-05,2]
[348598555,1736664632728,-151.86683046,9.773e-05,2]
[348598556,1736664632737,-150.85786658,9.773e-05,2]
[348598557,1736664632746,-151.86918495,9.773e-05,2]
[348598558,1736664632755,-151.86920654,9.773e-05,2]
[348598559,1736664632764,-500.71401364,9.773e-05,2]
[348598560,1736664632773,-166.14331097,9.773e-05,2]
[348598561,1736664632782,-260.56898845,9.773e-05,2]
[348598562,1736664632792,-375.79056781,9.773e-05,2]
[348598563,1736664632801,-1492.92,9.796e-05,2]
[348598564,1736664632810,-500.0,9.796e-05,2]
[348598565,1736664632819,-500.0,9.796e-05,2]
[348598566,1736664632828,-500.0,9.796e-05,2]
[348598567,1736664632837,-500.0,9.796e-05,2]
[348598568,1736664632846,-1187.17,9.796e-05,2]
[348598569,1736664632855,-453.59836237,9.796e-05,2]
[348598570,1736664632864,-500.0,9.796e-05,2]
[348598571,1736664632873,-500.0,9.796e-05,2]
[348598572,1736664632882,-500.0,9.796e-05,2]
[348598573,1736664632891,-506.32303586,9.796e-05,2]
[348598574,1736664632900,-156.9991779,9.796e-05,2]
[348598575,1736664632910,-500.0,9.796e-05,2]
[348598576,1736664632918,-500.0,9.796e-05,2]
[348598577,1736664632928,-500.0,9.796e-05,2]
[348598578,1736664632937,-500.0,9.796e-05,2]
[348598579,1736664632946,-500.0,9.796e-05,2]
[348598580,1736664632955,-500.0,9.796e-05,2]
[348598581,1736664632965,-500.0,9.796e-05,2]
[348598582,1736664632974,-500.0,9.796e-05,2]
[348598583,1736664632983,-500.0,9.796e-05,2]
[348598584,1736664632992,-993.35,9.796e-05,2]
[348598585,1736664633001,-500.0,9.796e-05,2]
[348598586,1736664633010,-258.3090093,9.796e-05,2]
[348598587,1736664633020,-500.0,9.796e-05,2]
[348598588,1736664633029,-500.0,9.796e-05,2]
[348598589,1736664633039,-500.0,9.796e-05,2]
[348598590,1736664633048,-500.0,9.796e-05,2]
[348598591,1736664633057,-500.0,9.796e-05,2]
[348598592,1736664633066,-500.0,9.796e-05,2]
[348598593,1736664633075,-500.0,9.796e-05,2]
[348598594,1736664633084,-124.67255213,9.796e-05,2]
[348598595,1736664633096,-375.32744787,9.796e-05,2]
[348598596,1736664633106,-500.0,9.796e-05,2]
[348598597,1736664633115,-500.0,9.796e-05,2]
[348598598,1736664633124,-631.43,9.796e-05,2]
[348598599,1736664633134,-510.78929281,9.796e-05,2]
[348598600,1736664633143,-1859.07,9.796e-05,2]
[348598601,1736664633153,-501.79952309,9.796e-05,2]
[348598602,1736664633162,-500.0,9.796e-05,2]
[348598603,1736664633171,-2299.02,9.796e-05,2]
[348598604,1736664633181,-500.0,9.796e-05,2]
[348598605,1736664633190,-511.72043616,9.796e-05,2]
[348598606,1736664633199,-600.82,9.796e-05,2]
[348598607,1736664633208,-500.0,9.796e-05,2]
[348598608,1736664633217,-508.20191655,9.796e-05,2]
[348598609,1736664633226,-500.0,9.796e-05,2]
[348598610,1736664633235,-500.0,9.796e-05,2]
[348598611,1736664633244,-1104.38,9.796e-05,2]
[348598612,1736664633258,-500.0,9.796e-05,2]
[348598613,1736664633267,-500.0,9.796e-05,2]
[348598614,1736664633276,-500.0,9.796e-05,2]
[348598615,1736664633285,-1369.53,9.796e-05,2]
[348598616,1736664633295,-507.50834352,9.796e-05,2]
[348598617,1736664633305,-1498.73,9.796e-05,2]
[348598618,1736664633314,-497.0,9.796e-05,2]
[348598619,1736664633324,-3063.74,9.796e-05,2]
[348598620,1736664633334,-1286.14144465,9.796e-05,2]
[348598621,1736664633347,-601.7404142,9.796e-05,2]
[348598622,1736664638069,-345.98814115,9.796e-05,2]
[348598623,1736664638078,-500.0,9.796e-05,2]
[348598624,1736664638087,-68.95290741,9.796e-05,2]
[348598625,1736664638098,-431.04709259,9.796e-05,2]
[348598626,1736664638108,-992.88,9.796e-05,2]
[348598627,1736664638117,-500.0,9.796e-05,2]
[348598628,1736664638126,-500.0,9.796e-05,2]
[348598629,1736664638135,-500.0,9.796e-05,2]
[348598630,1736664638144,-500.0,9.796e-05,2]
[348598631,1736664638153,-500.0,9.796e-05,2]
[348598632,1736664638162,-500.0,9.796e-05,2]
[348598633,1736664638172,-1018.01,9.796e-05,2]
[348598634,1736664638181,-500.0,9.796e-05,2]
[348598635,1736664638190,-500.0,9.796e-05,2]
[348598636,1736664638199,-502.66734371,9.796e-05,2]
[348598637,1736664638209,-500.0,9.796e-05,2]
[348598638,1736664638219,-500.0,9.796e-05,2]
[348598640,1736664638228,-500.0,9.796e-05,2]
[348598642,1736664638237,-500.0,9.796e-05,2]
[348598643,1736664638247,-1456.79,9.796e-05,2]
[348598645,1736664638259,-2026.96,9.796e-05,2]
[348598647,1736664638268,-500.0,9.796e-05,2]
[348598649,1736664638277,-500.0,9.796e-05,2]
[348598651,1736664638286,-2633.29,9.796e-05,2]
[348598653,1736664638296,-500.0,9.796e-05,2]
[348598654,1736664638305,-500.0,9.796e-05,2]
[348598656,1736664638315,-543.40775402,9.796e-05,2]
[348598658,1736664638324,-500.0,9.796e-05,2]
[348598660,1736664638335,-500.0,9.796e-05,2]
[348598662,1736664638344,-500.0,9.796e-05,2]
[348598664,1736664638353,-500.0,9.796e-05,2]
[348598665,1736664638362,-500.0,9.796e-05,2]
[348598667,1736664638371,-500.0,9.796e-05,2]
[348598669,1736664638381,-500.0,9.796e-05,2]
[348598671,1736664638390,-500.0,9.796e-05,2]
[348598673,1736664638399,-500.0,9.796e-05,2]
[348598674,1736664638408,-500.0,9.796e-05,2]
[348598676,1736664638417,-500.0,9.796e-05,2]
[348598678,1736664638427,-500.0,9.796e-05,2]
[348598680,1736664638436,-2706.37,9.796e-05,2]
[348598682,1736664638445,-500.0,9.796e-05,2]
[348598684,1736664638454,-500.0,9.796e-05,2]
[348598686,1736664638463,-567.92,9.796e-05,2]
[348598687,1736664638472,-2579.55,9.796e-05,2]
[348598688,1736664638481,-501.36275419,9.796e-05,2]
[348598690,1736664638490,-501.56028009,9.796e-05,2]
[348598692,1736664638499,-500.0,9.796e-05,2]
[348598693,1736664638508,-1594.75,9.796e-05,2]
[348598694,1736664638517,-500.0,9.796e-05,2]
[348598695,1736664638525,-500.0,9.796e-05,2]
[348598696,1736664638534,-502.01372735,9.796e-05,2]
[348598697,1736664638543,-3805.02,9.796e-05,2]
[348598698,1736664638552,-572.42031,9.796e-05,2]
[348598699,1736664638560,-500.0,9.796e-05,2]
[348598700,1736664638569,-500.0,9.796e-05,2]
[348598701,1736664638578,-2233.36,9.796e-05,2]
[348598702,1736664638587,-2126.05,9.796e-05,2]
[348598703,1736664638596,-1039.96,9.796e-05,2]
[348598704,1736664638606,-500.0,9.796e-05,2]
[348598705,1736664638615,-502.1767715,9.796e-05,2]
[348598707,1736664638624,-502.01845878,9.796e-05,2]
[348598709,1736664638633,-500.0,9.796e-05,2]
[348598711,1736664638642,-500.0,9.796e-05,2]
[348598713,1736664638651,-500.0,9.796e-05,2]
[348598715,1736664638660,-502.7486962,9.796e-05,2]
[348598717,1736664638669,-500.0,9.796e-05,2]
[348598719,1736664638679,-1541.53,9.796e-05,2]
[348598720,1736664638687,-502.62384533,9.796e-05,2]
[348598728,1736664638884,-501.07253223,9.796e-05,2]
[348598730,1736664638893,-500.0,9.796e-05,2]
[348598732,1736664638903,-2279.39,9.796e-05,2]
[348598734,1736664638912,-502.79089107,9.796e-05,2]
[348598736,1736664638921,-500.0,9.796e-05,2]
[348598738,1736664638930,-500.95358985,9.796e-05,2]
[348598740,1736664638940,-2963.62,9.796e-05,2]
[348598741,1736664638950,-1598.98,9.796e-05,2]
[348598742,1736664638959,-500.22863718,9.796e-05,2]
[348598743,1736664638968,-500.0,9.796e-05,2]
[348598744,1736664638978,-500.0,9.796e-05,2]
[348598745,1736664638987,-506.85558834,9.796e-05,2]
[348598746,1736664638996,-500.0,9.796e-05,2]
[348598747,1736664639005,-500.0,9.796e-05,2]
[348598748,1736664639014,-500.0,9.796e-05,2]
[348598749,1736664639023,-500.0,9.796e-05,2]
[348598750,1736664639031,-565.56,9.796e-05,2]
[348598751,1736664639041,-500.0,9.796e-05,2]
[348598752,1736664639051,-1710.43,9.796e-05,2]
[348598753,1736664639060,-913.706464,9.796e-05,2]
[348598754,1736664639069,-500.0,9.796e-05,2]
[348598755,1736664639078,-500.0,9.796e-05,2]
[348598756,1736664639086,-500.0,9.796e-05,2]
[348598757,1736664639095,-500.0,9.796e-05,2]
[348598758,1736664639104,-500.0,9.796e-05,2]
[348598759,1736664639113,-161.169967,9.796e-05,2]
[348598760,1736664639122,-500.0,9.796e-05,2]
[348598761,1736664639131,-508.54575726,9.796e-05,2]
[348598762,1736664639140,-156.482529,9.796e-05,2]
[348598763,1736664639150,-1287.27,9.796e-05,2]
[348598764,1736664639159,-500.0,9.796e-05,2]
[348598765,1736664639168,-500.0,9.796e-05,2]
[348598766,1736664639177,-500.0,9.796e-05,2]
[348598767,1736664639186,-500.0,9.796e-05,2]
[348598768,1736664639195,-500.0,9.796e-05,2]
[348598769,1736664639204,-500.0,9.796e-05,2]
[348598770,1736664639213,-1149.0,9.796e-05,2]
[348598771,1736664639222,-500.0,9.796e-05,2]
[348598772,1736664639231,-159.43487413,9.796e-05,2]
[348598773,1736664639240,-1405.71,9.796e-05,2]
[348598774,1736664639249,-500.0,9.796e-05,2]
[348598775,1736664639258,-500.0,9.796e-05,2]
[348598776,1736664639271,-500.0,9.796e-05,2]
[348598777,1736664639280,-3904.14,9.796e-05,2]
[348598778,1736664639290,-963.31,9.797e-05,2]
[348598779,1736664639299,-557.14,9.797e-05,2]
[348598780,1736664639308,-500.0,9.797e-05,2]
[348598781,1736664639318,-500.0,9.797e-05,2]
[348598782,1736664639327,-500.0,9.797e-05,2]
[348598783,1736664639336,-154.32807272,9.797e-05,2]
[348598784,1736664639345,-500.0,9.797e-05,2]
[348598785,1736664639355,-500.0,9.797e-05,2]
[348598786,1736664639364,-500.0,9.797e-05,2]
[348598787,1736664639373,-500.0,9.797e-05,2]
[348598788,1736664639383,-500.0,9.797e-05,2]
[348598789,1736664639392,-1103.95,9.797e-05,2]
[348598790,1736664639401,-867.85,9.797e-05,2]
[348598791,1736664639410,-763.15,9.797e-05,2]
[348598792,1736664639419,-960.97,9.797e-05,2]
[348598793,1736664639428,-502.67342502,9.797e-05,2]
[348598794,1736664639438,-644.23,9.797e-05,2]
[348598795,1736664639447,-500.0,9.797e-05,2]
[348598796,1736664639456,-500.0,9.797e-05,2]
[348598797,1736664639465,-500.0,9.797e-05,2]
[348598798,1736664639475,-500.0,9.797e-05,2]
[348598799,1736664639484,-502.44896581,9.797e-05,2]
[348598800,1736664639494,-500.0,9.797e-05,2]
[348598801,1736664639504,-500.0,9.797e-05,2]
[348598802,1736664639512,-500.0,9.797e-05,2]
[348598803,1736664639522,-500.0,9.797e-05,2]
[348598804,1736664639531,-500.0,9.797e-05,2]
[348598805,1736664639540,-754.45,9.797e-05,2]
[348598806,1736664639549,-500.0,9.797e-05,2]
[348598807,1736664639558,-500.0,9.797e-05,2]
[348598808,1736664639567,-503.52325328,9.797e-05,2]
[348598809,1736664639576,-500.0,9.797e-05,2]
[348598810,1736664639585,-928.85,9.797e-05,2]
[348598811,1736664639594,-987.87,9.797e-05,2]
[348598812,1736664639603,-500.0,9.797e-05,2]
[348598813,1736664639612,-851.53,9.797e-05,2]
[348598814,1736664639622,-500.80914318,9.797e-05,2]
[348598815,1736664639631,-500.0,9.797e-05,2]
[348598816,1736664639641,-500.0,9.797e-05,2]
[348598817,1736664639650,-500.0,9.797e-05,2]
[348598818,1736664639659,-500.0,9.797e-05,2]
[348598819,1736664639669,-503.38427503,9.797e-05,2]
[348598820,1736664639678,-500.0,9.797e-05,2]
[348598821,1736664639687,-500.0,9.797e-05,2]
[348598822,1736664639696,-500.0,9.797e-05,2]
[348598823,1736664639706,-496.11963,9.797e-05,2]
[348598824,1736664639716,-500.0,9.797e-05,2]
[348598825,1736664639725,-500.0,9.797e-05,2]
[348598826,1736664639736,-500.0,9.797e-05,2]
[348598827,1736664639745,-500.0,9.797e-05,2]
[348598828,1736664639754,-500.0,9.797e-05,2]
[348598829,1736664639763,-500.0,9.797e-05,2]
[348598830,1736664639772,-505.22839018,9.797e-05,2]
[348598831,1736664639782,-501.28302371,9.797e-05,2]
[348598832,1736664639791,-500.0,9.797e-05,2]
[348598833,1736664639801,-504.64610442,9.797e-05,2]
[348598834,1736664639810,-519.07,9.797e-05,2]
[348598835,1736664639819,-1014.03,9.797e-05,2]
[348598836,1736664639829,-500.0,9.797e-05,2]
[348598837,1736664639838,-500.0,9.797e-05,2]
[348598838,1736664639847,-674.28,9.797e-05,2]
[348598839,1736664639856,-500.0,9.797e-05,2]
[348598842,1736664639866,-500.0,9.797e-05,2]
[348598844,1736664639875,-500.0,9.797e-05,2]
[348598846,1736664639884,-757.73,9.797e-05,2]
[348598847,1736664639893,-963.18,9.797e-05,2]
[348598848,1736664639903,-500.0,9.797e-05,2]
[348598849,1736664639912,-500.0,9.797e-05,2]
[348598850,1736664639921,-1070.9,9.797e-05,2]
[348598851,1736664639930,-536.18,9.797e-05,2]
[348598852,1736664639940,-807.745554,9.797e-05,2]
[348598853,1736664639948,-500.0,9.797e-05,2]
[348598854,1736664639958,-774.11,9.797e-05,2]
[348598855,1736664639967,-572.02788219,9.797e-05,2]
[348598856,1736664639976,-500.0,9.797e-05,2]
[348598857,1736664639984,-500.0,9.797e-05,2]
[348598858,1736664639993,-500.0,9.797e-05,2]
[348598859,1736664640003,-500.0,9.797e-05,2]
[348598860,1736664640012,-500.0,9.797e-05,2]
[348598861,1736664640021,-500.0,9.797e-05,2]
[348598862,1736664640030,-1118.47,9.797e-05,2]
[348598863,1736664640039,-500.0,9.797e-05,2]
[348598864,1736664640048,-500.0,9.797e-05,2]
[348598865,1736664640058,-500.0,9.797e-05,2]
[348598866,1736664640067,-500.0,9.797e-05,2]
[348598867,1736664640076,-500.0,9.797e-05,2]
[348598868,1736664640085,-500.0,9.797e-05,2]
[348598869,1736664640095,-500.0,9.797e-05,2]
[348598870,1736664640104,-500.0,9.797e-05,2]
[348598871,1736664640113,-907.73,9.797e-05,2]
[348598872,1736664640122,-500.0,9.797e-05,2]
[348598873,1736664640131,-504.9479039,9.797e-05,2]
[348598874,1736664640140,-500.0,9.797e-05,2]
[348598875,1736664640149,-246.53665987,9.797e-05,2]